fUSD/lending_fUSD_20240319
["ID","MTS","AMOUNT","RATE_DAILY","PERIOD"]
[319542685,1710839432587,-2514.8573323,0.000139,2]
[319542686,1710839432597,-393.22922345,0.0001399,2]
[319542687,1710839432608,-155.0,0.00013996,2]
[319542688,1710839432618,-164.83401031,0.00013996,2]
[319542689,1710839432628,-628.90648861,0.00013996,2]
[319542690,1710839432638,-272.88916697,0.00013996,2]
[319542691,1710839432648,-703.7365253,0.00013996,2]
[319542692,1710839432658,-4300.76140114,0.00013996,2]
[319542693,1710839432668,-727.73439411,0.00013996,2]
[319542694,1710839432678,-361.08378176,0.00013996,2]
[319542695,1710839432688,-3044.5739065,0.00013996,2]
[319542696,1710839432699,-467.58,0.00013996,2]
[319542697,1710839432709,-499.99,0.00013996,2]
[319542698,1710839432719,-735.71374126,0.00013997,2]
[319542699,1710839432730,-506.25,0.00013997,2]
[319542700,1710839432740,-162.90114353,0.00013997,2]
[319542702,1710839432749,-451.06949733,0.00013997,2]
[319542704,1710839432759,-337.78287513,0.00013997,2]
[319542706,1710839432769,-533.99258616,0.00013997,2]
[319542708,1710839432779,-996.47217326,0.00013997,2]
[319542724,1710839432941,-205.29676604,0.00013998,2]
[319542726,1710839432955,-197.06053943,0.00013998,2]
[319542728,1710839432966,-400.0,0.00013998,2]
[319542730,1710839432978,-12739.39299961,0.00013999,2]
[319542732,1710839432990,-4203.930949,0.00013999,2]
[319542734,1710839433003,-39068.01277872,0.00013999,2]
[319542737,1710839433031,-3637.1349863,0.00013999,2]
[319542739,1710839433048,-476.07443639,0.00013999,2]
[319542742,1710839433066,-417.2125994,0.00013999,2]
[319542745,1710839433089,-5684.6120755,0.00013999,2]
[319542747,1710839433102,-39095.88095225,0.00013999,2]
[319542750,1710839433116,-1188.16700002,0.00013999,2]
[319542752,1710839433129,-8982.82997581,0.00013999,2]
[319542754,1710839433142,-941.55406681,0.00013999,2]
[319542757,1710839433159,-35440.5,0.00013999,2]
[319542759,1710839433171,-14168.88515562,0.00013999,2]
[319542761,1710839433183,-846.08694448,0.00013999,2]
[319542764,1710839433200,-4775.97614724,0.00013999,2]
[319542767,1710839433219,-285.24687083,0.00013999,2]
[319542768,1710839433231,-303.19600311,0.00013999,2]
[319542769,1710839433243,-3254.0,0.00013999,2]
[319542770,1710839433259,-65000.0,0.00013999,2]
[319542771,1710839433272,-258.028,0.00013999,2]
[319542772,1710839433284,-566.38640999,0.00013999,2]
[319542773,1710839433328,-61360.32482621,0.00013999,2]
[319542774,1710839433342,-1604.0,0.00013999,2]
[319542775,1710839433358,-1604.74615787,0.00013999,2]
[319542798,1710839438202,-978.66006779,0.00013999,2]
[319542807,1710839438226,-66275.25699559,0.00013999,2]
[319542809,1710839438239,-10218.09076099,0.00013999,2]
[319542811,1710839438252,-8260.1258,0.00013999,2]
[319542813,1710839438265,-1234.5477732,0.00013999,2]
[319542816,1710839438278,-316.06575,0.00013999,2]
[319542818,1710839438290,-6339.0,0.00013999,2]
[319542823,1710839438329,-15587.43677499,0.00013999,2]
[319542825,1710839438341,-1132.30174545,0.00013999,2]
[319542827,1710839438354,-419.03186884,0.00013999,2]
[319542829,1710839438365,-1009.62037479,0.00013999,2]
[319542832,1710839438387,-1557.77303225,0.00013999,2]
[319542833,1710839438403,-632.04850622,0.00013999,2]
[319542834,1710839438419,-5540.62781443,0.00013999,2]
[319542835,1710839438429,-244.15557906,0.00014,2]
[319542836,1710839438441,-679.43876,0.00014,2]
[319542837,1710839438457,-25753.39893951,0.00014,2]
[319542838,1710839438474,-189900.0,0.00014,2]
[319542839,1710839438499,-13000.0,0.00014,2]
[319542840,1710839438511,-65000.99999999,0.00014,2]
[319542841,1710839438523,-31607.55479998,0.00014,2]
[319542842,1710839438535,-12345.0623473,0.00014,2]
[319542843,1710839438546,-40188.70718728,0.00014,2]
[319542844,1710839438572,-73999.999999,0.00014,2]
[319542845,1710839438584,-18973.2,0.00014,2]
[319542940,1710839440405,-6488.92179998,0.00014,2]
[319542941,1710839440417,-476.89609815,0.00014,2]
[319542942,1710839440430,-5022.13100153,0.00014,2]
[319542943,1710839440441,-550.86618402,0.00014,2]
[319542944,1710839440455,-3207.62944214,0.00014,2]
[319542945,1710839440489,-1149.999994,0.00014,2]
[319542946,1710839440503,-18052.18669227,0.00014,2]
[319542947,1710839440520,-506.977,0.00014,2]
[319542948,1710839440556,-454.61792905,0.00014,2]
[319542949,1710839440569,-3238.0,0.00014,2]
[319542950,1710839440590,-633.33,0.00014,2]
[319542951,1710839440631,-2588.53799996,0.00014,2]
[319542952,1710839440643,-1632.17741702,0.00014,2]
[319543034,1710839443274,-331.81671749,0.00013998,2]
[319543037,1710839443285,-10195.30048251,0.00014,2]
[319543053,1710839443373,-910.10222736,0.00014,2]
[319543058,1710839443390,-16235.92894988,0.00014,2]
[319543061,1710839443403,-2182.95973122,0.00014,2]
[319543066,1710839443427,-7300.0,0.00014,2]
[319543071,1710839443441,-951.47052,0.00014,2]
[319543076,1710839443468,-1393.26845612,0.00014,2]
[319543081,1710839443484,-3658.38640804,0.00014,2]
[319543084,1710839443497,-5420.415,0.00014,2]
[319543090,1710839443540,-172196.322246,0.00014,2]
[319543093,1710839443565,-1232.59348663,0.00014,2]
[319543095,1710839443578,-3416.0,0.00014,2]
[319543098,1710839443595,-5741.00237352,0.00014,2]
[319543105,1710839443652,-1618.80645669,0.00014,2]
[319543107,1710839443664,-359.73856219,0.00014,2]
[319543109,1710839443677,-32469.99999996,0.00014,2]
[319543112,1710839443690,-73761.43116289,0.00014,2]
[319543127,1710839443969,-666469.68758591,0.00014,2]
[319543128,1710839443983,-1183.86740298,0.00014,2]
[319543129,1710839443996,-19750.8576245,0.00014,2]
[319543147,1710839446277,-253.96917019,0.00013999,2]
[319543150,1710839446320,-3561.62033073,0.00013999,2]
[319543151,1710839446330,-269.98525985,0.00013999,2]
[319543152,1710839446342,-2164.81254762,0.00014,2]
[319543153,1710839446376,-1732.4807489,0.00014,2]
[319543154,1710839446390,-759.08272986,0.00014,2]
[319543155,1710839446433,-1955.16999999,0.00014,2]
[319543156,1710839446445,-444.28447346,0.00014,2]
[319543157,1710839446457,-1784.8746892,0.00014,2]
[319543158,1710839446469,-7072.6211329,0.00014,2]
[319543159,1710839446493,-626.86484445,0.00014,2]
[319543160,1710839446504,-7543.88816212,0.00014,2]
[319543161,1710839446515,-317.70411316,0.00014,2]
[319543162,1710839446784,-3592.47495052,0.00012997,2]
[319543163,1710839446794,-259220.99877496,0.00014,2]
[319543164,1710839446811,-763.11402101,0.00014,2]
[319543166,1710839446822,-6632.55108349,0.00014,2]
[319543168,1710839446837,-1927.4725808,0.00014,2]
[319543170,1710839446848,-767.16638275,0.00014,2]
[319543171,1710839446864,-335.35420058,0.00014,2]
[319543172,1710839446875,-844.94027924,0.00014,2]
[319543174,1710839446887,-1352.04699537,0.00014,2]
[319543181,1710839446993,-378.79104645,0.00014,2]
[319543182,1710839447006,-2530.65702898,0.00014,2]
[319543183,1710839447019,-14346.0,0.00014,2]
[319543184,1710839447048,-308.87403957,0.00014,2]
[319543185,1710839447067,-42670.14576836,0.00014,2]
[319543186,1710839447080,-830.26043988,0.00014,2]
[319543187,1710839453445,191.48116566,0.00011198,2]
[319543188,1710839478996,-155.0,0.00012598,2]
[319543189,1710839479024,-193.54433632,0.00012866,2]
[319543190,1710839479052,-150.08597,0.00012867,2]
[319543191,1710839479088,-286.81647839,0.00012997,2]
[319543192,1710839479116,-216.23627296,0.00012997,2]
[319543193,1710839479144,-8854.23882913,0.00012997,2]
[319543194,1710839479174,-2976.99956463,0.00012997,2]
[319543195,1710839479207,-503.74571411,0.000139,2]
[319543196,1710839479622,-9171.32495064,0.00013997,2]
[319543197,1710839479653,-331.81671749,0.00013998,2]
[319543198,1710839479683,-1053.4426883,0.00013998,2]
[319543199,1710839479712,-529.37904197,0.00013998,2]
[319543200,1710839479740,-331.81671749,0.00013998,2]
[319543201,1710839479770,-331.81671749,0.00013998,2]
[319543202,1710839479799,-331.81671749,0.00013998,2]
[319543203,1710839479837,-331.81671749,0.00013998,2]
[319543204,1710839479867,-331.81671749,0.00013998,2]
[319543205,1710839479895,-1000.0,0.00013999,2]
[319543206,1710839479924,-7789.14364204,0.00013999,2]
[319543207,1710839479954,-14669.14220657,0.00014,2]
[319543231,1710839918116,-5347.53526917,0.000398,120]
[319543232,1710839918147,-151.67,0.00047603,120]
[319543233,1710839918175,-72184.9962021,0.0004899,120]
[319543234,1710839918211,-165.03,0.00049178,120]
[319543235,1710839918239,-1000.0,0.00049315,120]
[319543236,1710839918268,-1000.0,0.00049315,120]
[319543237,1710839918299,-1000.0,0.00049315,120]
[319543238,1710839918328,-1000.0,0.00049315,120]
[319543239,1710839918357,-1000.0,0.00049315,120]
[319543240,1710839918382,-1000.0,0.00049315,120]
[319543241,1710839918408,-1000.0,0.00049315,120]
[319543242,1710839918435,-1000.0,0.00049315,120]
[319543243,1710839918467,-383.78574706,0.00049315,120]
[319543244,1710839918495,-10000.0,0.000497,117]
[319543245,1710839918523,-151.0,0.000498,120]
[319543246,1710839918552,-151.0,0.000498,120]
[319543247,1710839918575,-151.0,0.000498,120]
[319543248,1710839918598,-151.0,0.000498,120]
[319543249,1710839918624,-345.938649,0.000498,120]
[319543250,1710839918648,-345.938649,0.000498,120]
[319543251,1710839918672,-151.0,0.000498,120]
[319543252,1710839918695,-227.85035,0.000498,120]
[319543253,1710839918723,-172.443865,0.000498,120]
[319543254,1710839918747,-172.443865,0.000498,120]
[319543255,1710839918770,-151.0,0.000498,120]
[319543256,1710839918797,-1706.58,0.00049945,120]
[319543257,1710839918820,-500.0,0.00049945,120]
[319543258,1710839918844,-151.0,0.00049995,120]
[319543259,1710839918869,-151.0,0.00049995,120]
[319543260,1710839918895,-151.0,0.00049995,120]
[319543261,1710839918919,-151.0,0.00049995,120]
[319543262,1710839918960,-151.0,0.00049995,120]
[319543263,1710839918987,-151.0,0.00049995,120]
[319543264,1710839919011,-151.0,0.00049995,120]
[319543265,1710839919036,-151.0,0.00049995,120]
[319543266,1710839919063,-151.0,0.00049995,120]
[319543267,1710839919087,-151.0,0.00049995,120]
[319543268,1710839919111,-153.357515,0.00049995,120]
[319543269,1710839919140,-151.0,0.00049995,120]
[319543270,1710839919166,-154.160531,0.00049995,120]
[319543271,1710839919191,-151.0,0.00049995,120]
[319543272,1710839919225,-151.0,0.00049995,120]
[319543273,1710839919251,-151.0,0.00049995,120]
[319543274,1710839919276,-151.0,0.00049995,120]
[319543275,1710839919300,-345.938649,0.00049995,120]
[319543276,1710839919325,-345.938649,0.00049995,120]
[319543277,1710839919349,-151.0,0.00049995,120]
[319543278,1710839919375,-5299.9999176,0.00049996,120]
[319543279,1710839919400,-70392.752491,0.00049996,120]
[319543280,1710839919424,-151.0,0.00049996,120]
[319543281,1710839919449,-151.0,0.00049996,120]
[319543282,1710839919483,-151.0,0.00049996,120]
[319543283,1710839919510,-181.8782,0.00049996,120]
[319543284,1710839919534,-181.8782,0.00049996,120]
[319543285,1710839919558,-155.333388,0.00049996,120]
[319543286,1710839919581,-151.0,0.00049996,120]
[319543287,1710839919606,-151.0,0.00049999,120]
[319543288,1710839919631,-151.0,0.00049999,120]
[319543289,1710839919654,-151.0,0.00049999,120]
[319543290,1710839919678,-151.0,0.00049999,120]
[319543291,1710839919708,-151.0,0.00049999,120]
[319543292,1710839919733,-1000.0,0.00049999,120]
[319543293,1710839919758,-5771.0,0.0005,120]
[319543294,1710839919782,-100000.0,0.0005,120]
[319543295,1710839919807,-7371.78065819,0.0005,120]
[319543296,1710839919831,-7380.584,0.0005,120]
[319543297,1710839919855,-5084.93,0.0005,90]
[319543298,1710839919879,-28502.70752532,0.0005,120]
[319543299,1710839919904,-2681.92824241,0.0005,120]
[319543300,1710839919929,-15000.0,0.0005,120]
[319543301,1710839919959,-30000.0,0.0005,120]
[319543302,1710839919983,-151.0,0.0005,120]
[319543303,1710839920007,-151.0,0.0005,120]
[319543304,1710839920031,-151.240874,0.0005,120]
[319543305,1710839920055,-151.0,0.0005,120]
[319543306,1710839920078,-170.160337,0.0005,120]
[319543307,1710839920102,-151.0,0.0005,120]
[319543308,1710839920125,-9999.99,0.0005,120]
[319543309,1710839920148,-4703.55,0.0005,120]
[319543310,1710839920171,-15000.0,0.0005,120]
[319543311,1710839920196,-3226.87,0.0005,120]
[319543312,1710839920226,-151.0,0.0005,120]
[319543313,1710839920250,-151.0,0.0005,120]
[319543314,1710839920274,-181.8782,0.0005,120]
[319543315,1710839920298,-181.8782,0.0005,120]
[319543316,1710839920321,-151.0,0.0005,120]
[319543317,1710839920345,-151.0,0.0005,120]
[319543318,1710839920562,-151.0,0.0005,120]
[319543319,1710839920589,-151.0,0.0005,120]
[319543320,1710839920616,-151.0,0.0005,120]
[319543321,1710839920640,-151.0,0.0005,120]
[319543322,1710839920664,-152.299516,0.0005,120]
[319543323,1710839920687,-151.0,0.0005,120]
[319543324,1710839920715,-151.0,0.0005,120]
[319543325,1710839920739,-151.0,0.0005,120]
[319543326,1710839920765,-212.8,0.0005,120]
[319543327,1710839920789,-151.0,0.0005,120]
[319543328,1710839920814,-169.012344,0.0005,120]
[319543329,1710839920839,-151.0,0.0005,120]
[319543330,1710839920864,-151.0,0.0005,120]
[319543331,1710839920889,-345.938649,0.0005,120]
[319543332,1710839920914,-345.938649,0.0005,120]
[319543333,1710839920939,-151.0,0.0005,120]
[319543334,1710839920971,-172.443865,0.0005,120]
[319543335,1710839920996,-172.443865,0.0005,120]
[319543336,1710839921020,-151.0,0.0005,120]
[319543337,1710839921044,-78679.0,0.0005,112]
[319543338,1710839921069,-151.056935,0.00050004,120]
[319543339,1710839921093,-151.0,0.00050004,120]
[319543340,1710839921116,-151.0,0.00050004,120]
[319543341,1710839921141,-151.0,0.00050004,120]
[319543342,1710839921165,-151.0,0.00050004,120]
[319543343,1710839921190,-15000.0,0.00050125,120]
[319543344,1710839921219,-30000.0,0.00050167,120]
[319543345,1710839921245,-15000.0,0.0005025,120]
[319543346,1710839921269,-30000.0,0.00050333,120]
[319543347,1710839921294,-1706.58,0.00050356,120]
[319543348,1710839921318,-500.0,0.00050356,120]
[319543349,1710839921343,-15000.0,0.00050375,120]
[319543350,1710839921366,-257.633583,0.00050375,120]
[319543351,1710839921390,-151.0,0.00050375,120]
[319543352,1710839921414,-15000.0,0.000505,120]
[319543353,1710839921438,-30000.0,0.000505,120]
[319543354,1710839921468,-151.0,0.000505,120]
[319543355,1710839921495,-181.8782,0.000505,120]
[319543356,1710839921519,-181.8782,0.000505,120]
[319543357,1710839921546,-169.081117,0.000505,120]
[319543358,1710839921570,-151.0,0.000505,120]
[319543359,1710839921594,-151.0,0.000505,120]
[319543360,1710839921619,-151.0,0.000505,120]
[319543361,1710839921644,-151.0,0.000505,120]
[319543362,1710839921668,-345.938649,0.000505,120]
[319543363,1710839921693,-345.938649,0.000505,120]
[319543364,1710839921721,-151.0,0.000505,120]
[319543365,1710839921746,-14716.98,0.00050625,120]
[319543366,1710839921771,-151.0,0.00050625,120]
[319543367,1710839921795,-151.0,0.00050625,120]
[319543368,1710839921820,-30000.0,0.00050667,120]
[319543369,1710839921845,-151.0,0.00050667,120]
[319543370,1710839921871,-172.443865,0.00050667,120]
[319543371,1710839921896,-172.443865,0.00050667,120]
[319543372,1710839921930,-151.0,0.00050667,120]
[319543373,1710839921960,-1706.58,0.00050767,120]
[319543374,1710839921987,-500.0,0.00050767,120]
[319543375,1710839922014,-23368.93,0.00050833,120]
[319543376,1710839922041,-551.30749537,0.00051,120]
[319543377,1710839922068,-10000.0,0.00051,120]
[319543378,1710839922094,-500.0,0.00051,120]
[319543379,1710839922120,-500.0,0.00051,120]
[319543380,1710839922147,-500.0,0.00051,120]
[319543381,1710839922173,-500.0,0.00051,120]
[319543382,1710839922200,-500.0,0.00051,120]
[319543383,1710839922231,-500.0,0.00051,120]
[319543384,1710839922256,-500.0,0.00051,120]
[319543385,1710839922281,-578.19,0.00051,120]
[319543386,1710839922305,-151.0,0.00051,120]
[319543387,1710839922330,-151.0,0.00051,120]
[319543388,1710839922354,-166.0,0.00051,100]
[319543389,1710839922379,-17577.0,0.000511,112]
[319543390,1710839922404,-1706.58,0.00051178,120]
[319543391,1710839922428,-500.0,0.00051178,120]
[319543392,1710839922461,-166.0,0.000515,101]
[319543393,1710839922487,-1706.58,0.00051589,120]
[319543394,1710839922511,-500.0,0.00051589,120]
[319543395,1710839922538,-2003.0,0.000517,117]
[319543396,1710839922563,-405.0,0.00051996,120]
[319543397,1710839922587,-5750.54333116,0.00052,120]
[319543398,1710839922611,-226570.61104862,0.00052,120]
[319543399,1710839930293,-977.517058,0.000498,120]
[319543400,1710839930319,-151.0,0.000498,120]
[319543401,1710839930346,-977.517058,0.000498,120]
[319543402,1710839930374,-151.0,0.000498,120]
[319543403,1710839930404,-977.517058,0.0005,120]
[319543404,1710839930430,-151.0,0.0005,120]
[319543405,1710839930461,-977.517058,0.0005,120]
[319543406,1710839930490,-151.0,0.0005,120]
[319543407,1710839930517,-977.517058,0.000505,120]
[319543408,1710839930546,-151.0,0.000505,120]
[319543409,1710839930572,-977.517058,0.000505,120]
[319543410,1710839930609,-23429.38895138,0.00052,120]
[319543411,1710839930635,-1000.0,0.00052,120]
[319543412,1710839930660,-2000.0,0.00052,120]
[319543413,1710839930684,-151.0,0.00052,120]
[319543414,1710839930714,-151.0,0.00052,120]
[319543415,1710839930741,-246.278691,0.00052,120]
[319543416,1710839930778,-151.0,0.00052,120]
[319543417,1710839930804,-1706.58,0.00052,120]
[319543418,1710839930828,-151.0,0.00052,120]
[319543419,1710839930853,-151.0,0.00052,120]
[319543420,1710839930876,-181.8782,0.00052,120]
[319543421,1710839930901,-181.8782,0.00052,120]
[319543422,1710839930925,-166.0,0.00052,102]
[319543423,1710839931193,-500.0,0.00052,120]
[319543424,1710839931226,-151.0,0.00052,120]
[319543425,1710839931252,-218.492728,0.00052,120]
[319543426,1710839931278,-151.0,0.00052,120]
[319543427,1710839931302,-299.939948,0.00052,120]
[319543428,1710839931326,-345.938649,0.00052,120]
[319543429,1710839931350,-345.938649,0.00052,120]
[319543430,1710839931374,-151.0,0.00052,120]
[319543431,1710839931400,-172.443865,0.00052,120]
[319543432,1710839931426,-172.443865,0.00052,120]
[319543433,1710839931452,-172.443865,0.00052,120]
[319543434,1710839931483,-172.443865,0.00052,120]
[319543435,1710839931508,-151.0,0.00052,120]
[319543436,1710839931533,-151.0,0.00052,120]
[319543437,1710839931557,-10000.0,0.00052,120]
[319543438,1710839931583,-977.517058,0.00052,120]
[319543439,1710839931613,-977.517058,0.00052,120]
[319543440,1710839931642,-977.517058,0.00052,120]
[319543441,1710839931669,-151.0,0.00052,120]
[319543442,1710839931696,-977.517058,0.00052,120]
[319543443,1710839931726,-151.0,0.00052,120]
[319543444,1710839931752,-14685.0,0.00052,120]
[319543445,1710839931779,-1706.58,0.0005241,120]
[319543446,1710839931809,-500.0,0.0005241,120]
[319543447,1710839931836,-333.33333333,0.00052438,120]
[319543448,1710839931862,-153.84615385,0.00052438,120]
[319543449,1710839931888,-405.0,0.00052466,120]
[319543450,1710839931916,-166.0,0.000525,103]
[319543451,1710839931942,-333.33333333,0.0005263,120]
[319543452,1710839931971,-153.84615385,0.00052658,120]
[319543453,1710839931996,-151.67,0.0005274,120]
[319543454,1710839932028,-1706.58,0.00052821,120]
[319543455,1710839932052,-500.0,0.00052821,120]
[319543456,1710839932076,-333.33333333,0.00052822,120]
[319543457,1710839932100,-601.48,0.0005287,120]
[319543458,1710839932124,-4325.09,0.0005287,120]
[319543459,1710839932147,-153.84615385,0.00052877,120]
[319543460,1710839932170,-30000.0,0.000529,120]
[319543461,1710839932194,-151.0,0.0005299,120]
[319543462,1710839932223,-151.0,0.0005299,120]
[319543463,1710839932249,-2500.0,0.00052996,120]
[319543464,1710839932273,-1300.0,0.00053,120]
[319543465,1710839932297,-3008.47,0.00053,120]
[319543466,1710839932320,-461000.00000001,0.00053,120]
[319543467,1710839932344,-76325.26,0.00053,120]
[319543468,1710839932368,-153.228098,0.00053,120]
[319543469,1710839932390,-151.0,0.00053,120]
[319543470,1710839932415,-151.0,0.00053,120]
[319543471,1710839932440,-238.649038,0.00053,120]
[319543472,1710839932469,-150.76,0.00053,120]
[319543473,1710839932493,-150.76,0.00053,120]
[319543474,1710839932516,-151.0,0.00053,120]
[319543475,1710839932545,-151.0,0.00053,120]
[319543476,1710839932569,-151.0,0.00053,120]
[319543477,1710839932597,-181.8782,0.00053,120]
[319543478,1710839932623,-181.8782,0.00053,120]
[319543479,1710839932648,-181.8782,0.00053,120]
[319543480,1710839932671,-181.8782,0.00053,120]
[319543481,1710839932699,-166.0,0.00053,104]
[319543482,1710839932727,-151.0,0.00053,120]
[319543483,1710839932752,-191.602456,0.00053,120]
[319543484,1710839932776,-151.0,0.00053,120]
[319543485,1710839932801,-151.0,0.00053,120]
[319543486,1710839932826,-345.938649,0.00053,120]
[319543487,1710839932852,-345.938649,0.00053,120]
[319543488,1710839932881,-345.938649,0.00053,120]
[319543489,1710839932910,-345.938649,0.00053,120]
[319543490,1710839932935,-151.0,0.00053,120]
[319543491,1710839932965,-151.0,0.00053,120]
[319543492,1710839932990,-172.443865,0.00053,120]
[319543493,1710839933014,-172.443865,0.00053,120]
[319543494,1710839933038,-172.443865,0.00053,120]
[319543495,1710839933062,-172.443865,0.00053,120]
[319543496,1710839933087,-232.816236,0.00053,120]
[319543497,1710839933111,-977.517058,0.00053,120]
[319543498,1710839933466,-977.517058,0.00053,120]
[319543499,1710839933496,-977.517058,0.00053,120]
[319543500,1710839933523,-151.0,0.00053,120]
[319543501,1710839933550,-977.517058,0.00053,120]
[319543502,1710839933576,-151.0,0.00053,120]
[319543503,1710839933601,-333.33333333,0.00053014,120]
[319543504,1710839933626,-151.0,0.00053041,120]
[319543505,1710839933650,-385.21111111,0.00053096,120]
[319543506,1710839933675,-202.89829484,0.00053123,120]
[319543507,1710839933700,-153.84615385,0.00053123,120]
[319543508,1710839933731,-1706.58,0.00053232,120]
[319543509,1710839933759,-500.0,0.00053232,120]
[319543510,1710839933786,-333.33333333,0.00053233,120]
[319543511,1710839933813,-1350.0,0.00053333,120]
[319543512,1710839933839,-153.84615385,0.00053342,120]
[319543513,1710839933864,-333.33333333,0.00053425,120]
[319543514,1710839933891,-166.0,0.000535,105]
[319543515,1710839933916,-151.0,0.00053562,120]
[319543516,1710839933944,-153.84615385,0.00053589,120]
[319543517,1710839933976,-153.0,0.00053616,120]
[319543518,1710839934001,-333.33333333,0.00053616,120]
[319543519,1710839934024,-173.83604614,0.00053621,120]
[319543520,1710839934049,-1706.58,0.00053643,120]
[319543521,1710839934073,-500.0,0.00053643,120]
[319543522,1710839934096,-385.21111111,0.00053644,120]
[319543523,1710839934120,-500.0,0.00053698,90]
[319543524,1710839934145,-202.89829484,0.00053808,120]
[319543525,1710839934170,-333.33333333,0.00053808,120]
[319543526,1710839934199,-153.84615385,0.00053808,120]
[319543527,1710839934228,-5000.0,0.000539,120]
[319543528,1710839934251,-209.640873,0.000539,120]
[319543529,1710839934275,-151.0,0.000539,120]
[319543530,1710839934299,-181.8782,0.000539,120]
[319543531,1710839934322,-181.8782,0.000539,120]
[319543532,1710839934348,-3092.50122328,0.000539,120]
[319543533,1710839934373,-3092.50122328,0.000539,120]
[319543534,1710839934397,-3092.50122328,0.000539,120]
[319543535,1710839934420,-3092.50122328,0.000539,120]
[319543536,1710839934447,-3092.50122328,0.000539,120]
[319543537,1710839934475,-3092.50122328,0.000539,120]
[319543538,1710839934500,-3092.50122328,0.000539,120]
[319543539,1710839934525,-3092.50122328,0.000539,120]
[319543540,1710839934549,-3092.50122328,0.000539,120]
[319543541,1710839934580,-3092.50122328,0.000539,120]
[319543542,1710839934603,-3092.50122328,0.000539,120]
[319543543,1710839934627,-3092.50122328,0.000539,120]
[319543544,1710839934653,-3092.50122328,0.000539,120]
[319543545,1710839934677,-3092.50122328,0.000539,120]
[319543546,1710839934702,-3092.50122328,0.000539,120]
[319543547,1710839934730,-3092.50122328,0.000539,120]
[319543548,1710839934753,-3092.50122328,0.000539,120]
[319543549,1710839934777,-3092.50122328,0.000539,120]
[319543550,1710839934801,-3092.50122328,0.000539,120]
[319543551,1710839934827,-3092.50122328,0.000539,120]
[319543552,1710839934853,-153.0,0.00053918,120]
[319543553,1710839934878,-8021.61806952,0.00053999,120]
[319543554,1710839934903,-2000.0,0.00054,120]
[319543555,1710839934925,-6804.65236261,0.00054,120]
[319543556,1710839934949,-6319.04166394,0.00054,120]
[319543557,1710839934979,-20005.16859644,0.00054,120]
[319543558,1710839935003,-151.0,0.00054,120]
[319543559,1710839935027,-166.0,0.00054,106]
[319543560,1710839935051,-151.0,0.00054,120]
[319543561,1710839935075,-345.938649,0.00054,120]
[319543562,1710839935098,-345.938651,0.00054,120]
[319543563,1710839935123,-151.0,0.00054,120]
[319543564,1710839935149,-172.443865,0.00054,120]
[319543565,1710839935190,-172.443867,0.00054,120]
[319543566,1710839935223,-977.517058,0.00054,120]
[319543567,1710839935252,-977.517058,0.00054,120]
[319543568,1710839935279,-151.0,0.00054,120]
[319543569,1710839935436,-333.33333333,0.00054027,120]
[319543570,1710839935464,-1706.58,0.00054054,120]
[319543571,1710839935490,-500.0,0.00054054,120]
[319543572,1710839935514,-153.84615385,0.00054055,120]
[319543573,1710839935539,-151.0,0.00054082,120]
[319543574,1710839935563,-385.21111111,0.00054192,120]
[319543575,1710839935587,-153.0,0.00054219,120]